[Event "Late-Titled-Tuesday-Blitz-August-29-2023"]
[Site "Chess.com"]
[Date "2023.08.29"]
[Round "10"]
[White "enriquetejedor"]
[Black "AryanTari"]
[Result "1-0"]
[WhiteElo "2769"]
[BlackElo "2923"]
[TimeControl "180+1"]
[EndTime "15:53:22 PDT"]
[Termination "enriquetejedor won on time"]

1. d4 {[%clk 0:03:00.9]} 1... Nf6 {[%clk 0:02:52.5]} 2. Nf3 {[%clk 0:03:00.2]}
2... g6 {[%clk 0:02:52.7]} 3. Nbd2 {[%clk 0:02:59.6]} 3... d5 {[%clk 0:02:51.5]}
4. e3 {[%clk 0:02:59.9]} 4... Bg7 {[%clk 0:02:51.6]} 5. b4 {[%clk 0:03:00]} 5...
O-O {[%clk 0:02:48.8]} 6. Bb2 {[%clk 0:02:59.9]} 6... a5 {[%clk 0:02:41.7]} 7.
b5 {[%clk 0:02:58.7]} 7... c5 {[%clk 0:02:42]} 8. bxc6 {[%clk 0:02:52]} 8...
Nxc6 {[%clk 0:02:41.2]} 9. a3 {[%clk 0:02:50.5]} 9... a4 {[%clk 0:02:19.4]} 10.
Bd3 {[%clk 0:02:48.6]} 10... Qa5 {[%clk 0:02:16.3]} 11. O-O {[%clk 0:02:47.7]}
11... b5 {[%clk 0:02:12.1]} 12. Qe2 {[%clk 0:02:45.4]} 12... Ba6 {[%clk
0:02:09.9]} 13. Ne5 {[%clk 0:02:34.5]} 13... Nxe5 {[%clk 0:02:01.4]} 14. dxe5
{[%clk 0:02:35.4]} 14... Nd7 {[%clk 0:02:01.9]} 15. f4 {[%clk 0:02:34.1]} 15...
e6 {[%clk 0:02:02]} 16. Bd4 {[%clk 0:02:31.8]} 16... Rfc8 {[%clk 0:02:00.6]} 17.
Rab1 {[%clk 0:02:28.6]} 17... Bf8 {[%clk 0:01:54]} 18. Ra1 {[%clk 0:02:21.1]}
18... Nc5 {[%clk 0:01:50.8]} 19. f5 {[%clk 0:02:12.5]} 19... Nxd3 {[%clk
0:01:35.9]} 20. fxe6 {[%clk 0:02:08.8]} 20... fxe6 {[%clk 0:01:35.9]} 21. cxd3
{[%clk 0:02:07.8]} 21... Rc2 {[%clk 0:01:21]} 22. Rf2 {[%clk 0:01:58.3]} 22...
b4 {[%clk 0:01:19.8]} 23. Raf1 {[%clk 0:01:52.6]} 23... Bg7 {[%clk 0:00:49.4]}
24. Qf3 {[%clk 0:01:43.9]} 24... Qc7 {[%clk 0:00:48.5]} 25. Qg4 {[%clk
0:01:35.6]} 25... Re8 {[%clk 0:00:46]} 26. e4 {[%clk 0:01:05.8]} 26... Bxd3
{[%clk 0:00:42.5]} 27. Rf7 {[%clk 0:01:03.3]} 27... Qxf7 {[%clk 0:00:29.4]} 28.
Rxf7 {[%clk 0:01:04.2]} 28... Rxd2 {[%clk 0:00:29.6]} 29. Rxg7+ {[%clk
0:00:41.9]} 29... Kxg7 {[%clk 0:00:30.5]} 30. exd5 {[%clk 0:00:37]} 30... Bf5
{[%clk 0:00:19.8]} 31. Qh4 {[%clk 0:00:22.3]} 31... Rd1+ {[%clk 0:00:18.5]} 32.
Kf2 {[%clk 0:00:21.8]} 32... Rf8 {[%clk 0:00:19.2]} 33. h3 {[%clk 0:00:17.1]}
33... bxa3 {[%clk 0:00:18.6]} 34. Be3 {[%clk 0:00:12.1]} 34... a2 {[%clk
0:00:15.4]} 35. Bh6+ {[%clk 0:00:11.8]} 35... Kg8 {[%clk 0:00:15.5]} 36. Qe7
{[%clk 0:00:12.3]} 36... Rd2+ {[%clk 0:00:13.5]} 37. Kg3 {[%clk 0:00:11.1]}
37... Rxg2+ {[%clk 0:00:03.4]} 38. Kxg2 {[%clk 0:00:12]} 38... Be4+ {[%clk
0:00:04]} 39. Kg3 {[%clk 0:00:10.6]} 39... Rf3+ {[%clk 0:00:04.2]} 40. Kg4
{[%clk 0:00:10.6]} 1-0

[Event "Late-Titled-Tuesday-Blitz-August-29-2023"]
[Site "Chess.com"]
[Date "2023.08.29"]
[Round "10"]
[White "CrushingKings"]
[Black "jcmesafischer"]
[Result "1-0"]
[WhiteElo "2577"]
[BlackElo "2470"]
[TimeControl "180+1"]
[EndTime "15:53:26 PDT"]
[Termination "CrushingKings won on time"]

1. Nf3 {[%clk 0:01:29.6]} 1... Nf6 {[%clk 0:02:58.4]} 2. g3 {[%clk 0:01:25.8]}
2... g6 {[%clk 0:02:57.7]} 3. b3 {[%clk 0:01:26.2]} 3... Bg7 {[%clk 0:02:57.5]}
4. Bb2 {[%clk 0:01:27.1]} 4... O-O {[%clk 0:02:57.5]} 5. Bg2 {[%clk 0:01:27.8]}
5... d5 {[%clk 0:02:57.7]} 6. c4 {[%clk 0:01:26.5]} 6... e6 {[%clk 0:02:52.4]}
7. O-O {[%clk 0:01:25.9]} 7... c5 {[%clk 0:02:52]} 8. cxd5 {[%clk 0:01:25.2]}
8... Nxd5 {[%clk 0:02:50.6]} 9. Bxg7 {[%clk 0:01:25]} 9... Kxg7 {[%clk
0:02:51.3]} 10. d4 {[%clk 0:01:25.3]} 10... Nd7 {[%clk 0:02:47.9]} 11. dxc5
{[%clk 0:01:16.4]} 11... Qf6 {[%clk 0:02:42.3]} 12. Nbd2 {[%clk 0:01:16.2]}
12... Nxc5 {[%clk 0:02:40.7]} 13. Rc1 {[%clk 0:01:16.1]} 13... Nc3 {[%clk
0:02:27.1]} 14. Qe1 {[%clk 0:01:15.6]} 14... b6 {[%clk 0:02:19]} 15. Ne5 {[%clk
0:01:08.7]} 15... Bb7 {[%clk 0:01:19.1]} 16. Bxb7 {[%clk 0:01:04.2]} 16... Nxb7
{[%clk 0:01:18.9]} 17. Nd7 {[%clk 0:01:02.2]} 17... Qd4 {[%clk 0:01:18.3]} 18.
Nxf8 {[%clk 0:01:01.3]} 18... Nxa2 {[%clk 0:01:12.5]} 19. Rc7 {[%clk 0:00:54.2]}
19... Nc5 {[%clk 0:01:11.6]} 20. b4 {[%clk 0:00:24.2]} 20... Nxb4 {[%clk
0:01:06]} 21. Nb3 {[%clk 0:00:20.3]} 21... Qd6 {[%clk 0:01:02.5]} 22. Nxc5
{[%clk 0:00:20]} 22... bxc5 {[%clk 0:01:00]} 23. Qc3+ {[%clk 0:00:20.4]} 23...
Kg8 {[%clk 0:00:45]} 24. Rxc5 {[%clk 0:00:19.5]} 24... Nd5 {[%clk 0:00:41]} 25.
Qd4 {[%clk 0:00:17.3]} 25... Qxf8 {[%clk 0:00:34.5]} 26. e4 {[%clk 0:00:17.4]}
26... Nb6 {[%clk 0:00:22.1]} 27. Rc7 {[%clk 0:00:17.5]} 27... Rd8 {[%clk
0:00:06.4]} 28. Qf6 {[%clk 0:00:18]} 28... Nd7 {[%clk 0:00:05.6]} 29. Qc3 {[%clk
0:00:14.9]} 29... Nb6 {[%clk 0:00:05.1]} 30. Rxa7 {[%clk 0:00:14.4]} 30... Nc8
{[%clk 0:00:03.9]} 31. Rc7 {[%clk 0:00:13.9]} 31... Nd6 {[%clk 0:00:04.3]} 32.
Qe5 {[%clk 0:00:13.1]} 32... Nb5 {[%clk 0:00:04]} 33. Qxb5 {[%clk 0:00:12.9]}
33... Qd6 {[%clk 0:00:03.5]} 34. Qc5 {[%clk 0:00:11]} 34... Qd3 {[%clk
0:00:03.2]} 35. Rc8 {[%clk 0:00:11.1]} 35... Rxc8 {[%clk 0:00:02.9]} 36. Qxc8+
{[%clk 0:00:11.7]} 36... Kg7 {[%clk 0:00:03.8]} 37. Qc6 {[%clk 0:00:12.2]} 37...
Qd4 {[%clk 0:00:03.8]} 38. Re1 {[%clk 0:00:11.1]} 38... h5 {[%clk 0:00:04.3]}
39. Qc1 {[%clk 0:00:11.5]} 39... Qe5 {[%clk 0:00:04.4]} 40. Qe3 {[%clk
0:00:12.4]} 40... Qf6 {[%clk 0:00:04.6]} 41. e5 {[%clk 0:00:12.1]} 41... Qe7
{[%clk 0:00:04]} 42. h4 {[%clk 0:00:12.5]} 42... Kh7 {[%clk 0:00:03.6]} 43. Qf4
{[%clk 0:00:12.3]} 43... Kg8 {[%clk 0:00:01.8]} 44. Re3 {[%clk 0:00:12.8]} 44...
Qc5 {[%clk 0:00:01.9]} 45. Rf3 {[%clk 0:00:12.6]} 45... Qc1+ {[%clk 0:00:02.5]}
46. Qxc1 {[%clk 0:00:12.4]} 1-0

[Event "Late-Titled-Tuesday-Blitz-August-29-2023"]
[Site "Chess.com"]
[Date "2023.08.29"]
[Round "10"]
[White "bazar-wokzal"]
[Black "Ducke13"]
[Result "1-0"]
[WhiteElo "2556"]
[BlackElo "2424"]
[TimeControl "180+1"]
[EndTime "15:53:28 PDT"]
[Termination "bazar-wokzal won by resignation"]

1. e4 {[%clk 0:03:00.9]} 1... c5 {[%clk 0:02:58.8]} 2. c3 {[%clk 0:03:00.8]}
2... d5 {[%clk 0:02:55.2]} 3. exd5 {[%clk 0:03:00.7]} 3... Nf6 {[%clk
0:02:55.9]} 4. Bb5+ {[%clk 0:03:00.1]} 4... Nbd7 {[%clk 0:02:55.2]} 5. c4 {[%clk
0:02:59.6]} 5... a6 {[%clk 0:02:55.5]} 6. Bxd7+ {[%clk 0:02:59.4]} 6... Bxd7
{[%clk 0:02:47.8]} 7. Nf3 {[%clk 0:02:58.9]} 7... e6 {[%clk 0:02:48.2]} 8. dxe6
{[%clk 0:02:58.1]} 8... Bxe6 {[%clk 0:02:49.1]} 9. d3 {[%clk 0:02:56]} 9... Be7
{[%clk 0:02:33.3]} 10. O-O {[%clk 0:02:55.6]} 10... O-O {[%clk 0:02:33.9]} 11.
Nc3 {[%clk 0:02:52.7]} 11... Qc7 {[%clk 0:02:33.6]} 12. Bg5 {[%clk 0:02:51]}
12... Rad8 {[%clk 0:02:33.1]} 13. Qc2 {[%clk 0:02:49.2]} 13... Bf5 {[%clk
0:02:31.3]} 14. Rad1 {[%clk 0:02:48.7]} 14... Rfe8 {[%clk 0:02:27.6]} 15. Bxf6
{[%clk 0:02:46.2]} 15... Bxf6 {[%clk 0:02:27.4]} 16. Nd5 {[%clk 0:02:46.5]}
16... Qd6 {[%clk 0:02:25]} 17. Rfe1 {[%clk 0:02:41.8]} 17... h6 {[%clk 0:02:17]}
18. Re3 {[%clk 0:02:34.4]} 18... Rxe3 {[%clk 0:02:13.4]} 19. fxe3 {[%clk
0:02:34.2]} 19... Bg4 {[%clk 0:02:10.5]} 20. Rf1 {[%clk 0:02:20.7]} 20... Re8
{[%clk 0:02:09.9]} 21. Nd2 {[%clk 0:02:05.5]} 21... Qe5 {[%clk 0:01:43.6]} 22.
Nxf6+ {[%clk 0:02:00.1]} 22... gxf6 {[%clk 0:01:42.3]} 23. Re1 {[%clk
0:01:27.2]} 23... Rd8 {[%clk 0:01:36.2]} 24. Ne4 {[%clk 0:01:11.1]} 24... f5
{[%clk 0:01:22.9]} 25. Nc3 {[%clk 0:00:46.8]} 25... f4 {[%clk 0:01:18.5]} 26.
Nd5 {[%clk 0:00:43.4]} 26... f3 {[%clk 0:01:02]} 27. Qc3 {[%clk 0:00:37.4]}
27... Qxc3 {[%clk 0:00:32.4]} 28. bxc3 {[%clk 0:00:36.5]} 28... Be6 {[%clk
0:00:23.1]} 29. e4 {[%clk 0:00:26.7]} 29... fxg2 {[%clk 0:00:20.5]} 30. Kxg2
{[%clk 0:00:27.5]} 30... b5 {[%clk 0:00:19.5]} 31. cxb5 {[%clk 0:00:19]} 31...
Bxd5 {[%clk 0:00:19.2]} 32. exd5 {[%clk 0:00:19.1]} 32... axb5 {[%clk
0:00:14.2]} 33. c4 {[%clk 0:00:19.1]} 33... b4 {[%clk 0:00:12.3]} 34. Re2 {[%clk
0:00:17.6]} 34... Ra8 {[%clk 0:00:12.2]} 35. Kf3 {[%clk 0:00:17.9]} 35... Ra3
{[%clk 0:00:12.7]} 36. Ke4 {[%clk 0:00:18.1]} 36... f5+ {[%clk 0:00:11.8]} 37.
Kxf5 {[%clk 0:00:17.2]} 37... Rxd3 {[%clk 0:00:11.4]} 38. Ke6 {[%clk 0:00:17.2]}
38... Rd4 {[%clk 0:00:09.4]} 39. d6 {[%clk 0:00:17]} 39... Rxc4 {[%clk
0:00:10.1]} 40. d7 {[%clk 0:00:17]} 40... Rd4 {[%clk 0:00:10.8]} 41. Ke7 {[%clk
0:00:16.9]} 41... c4 {[%clk 0:00:10.6]} 42. d8=Q+ {[%clk 0:00:16.7]} 42... Rxd8
{[%clk 0:00:11.1]} 43. Kxd8 {[%clk 0:00:17.6]} 43... Kf7 {[%clk 0:00:08.9]} 44.
Kd7 {[%clk 0:00:17.6]} 44... Kf6 {[%clk 0:00:09.1]} 45. Kd6 {[%clk 0:00:18]}
45... Kf5 {[%clk 0:00:09.9]} 46. Kd5 {[%clk 0:00:18.3]} 46... Kf4 {[%clk
0:00:10.7]} 47. Kxc4 {[%clk 0:00:18.3]} 47... Kf3 {[%clk 0:00:11.5]} 48. Rb2
{[%clk 0:00:18.5]} 48... h5 {[%clk 0:00:11.8]} 49. Kxb4 {[%clk 0:00:18.6]} 49...
h4 {[%clk 0:00:12.7]} 50. a4 {[%clk 0:00:18.8]} 50... h3 {[%clk 0:00:13.6]} 51.
a5 {[%clk 0:00:19.2]} 1-0

[Event "Late-Titled-Tuesday-Blitz-August-29-2023"]
[Site "Chess.com"]
[Date "2023.08.29"]
[Round "10"]
[White "vladgoncharov"]
[Black "Orest_Vovk"]
[Result "1-0"]
[WhiteElo "2521"]
[BlackElo "2594"]
[TimeControl "180+1"]
[EndTime "15:53:30 PDT"]
[Termination "vladgoncharov won on time"]

1. d4 {[%clk 0:03:00.9]} 1... g6 {[%clk 0:02:46.4]} 2. e4 {[%clk 0:03:00]} 2...
Bg7 {[%clk 0:02:45]} 3. Nc3 {[%clk 0:02:59.4]} 3... d6 {[%clk 0:02:43.2]} 4. Be3
{[%clk 0:02:58.6]} 4... a5 {[%clk 0:02:43.3]} 5. Qd2 {[%clk 0:02:56.5]} 5... Nf6
{[%clk 0:02:43.3]} 6. f3 {[%clk 0:02:55.8]} 6... O-O {[%clk 0:02:42.5]} 7. Bh6
{[%clk 0:02:52.1]} 7... Na6 {[%clk 0:02:40.4]} 8. h4 {[%clk 0:02:46.2]} 8... c6
{[%clk 0:02:34]} 9. h5 {[%clk 0:02:44.2]} 9... e5 {[%clk 0:02:26.1]} 10. Bxg7
{[%clk 0:02:37]} 10... Kxg7 {[%clk 0:02:25.9]} 11. hxg6 {[%clk 0:02:37.1]} 11...
fxg6 {[%clk 0:02:24.2]} 12. Qh6+ {[%clk 0:02:36]} 12... Kg8 {[%clk 0:02:24.1]}
13. O-O-O {[%clk 0:02:35.9]} 13... Qe7 {[%clk 0:02:20]} 14. dxe5 {[%clk
0:02:27.5]} 14... dxe5 {[%clk 0:02:17.8]} 15. g4 {[%clk 0:02:26.9]} 15... Be6
{[%clk 0:02:09.9]} 16. Nh3 {[%clk 0:02:23.7]} 16... Qg7 {[%clk 0:01:46.5]} 17.
Qxg7+ {[%clk 0:02:04.9]} 17... Kxg7 {[%clk 0:01:46.2]} 18. Ng5 {[%clk
0:02:05.2]} 18... Bg8 {[%clk 0:01:45.2]} 19. Bxa6 {[%clk 0:01:54.9]} 19... Rxa6
{[%clk 0:01:40.9]} 20. Rd6 {[%clk 0:01:54.5]} 20... Raa8 {[%clk 0:01:27.7]} 21.
Rhd1 {[%clk 0:01:45.9]} 21... Rae8 {[%clk 0:01:26.6]} 22. b3 {[%clk 0:01:35.3]}
22... h6 {[%clk 0:01:23.6]} 23. Nh3 {[%clk 0:01:34.7]} 23... Be6 {[%clk
0:01:23.7]} 24. Nf2 {[%clk 0:01:24]} 24... Nh7 {[%clk 0:01:20.4]} 25. Nd3 {[%clk
0:01:09.7]} 25... Bc8 {[%clk 0:01:06.7]} 26. Ne1 {[%clk 0:01:06.1]} 26... Ng5
{[%clk 0:01:05.2]} 27. R6d3 {[%clk 0:01:05.2]} 27... h5 {[%clk 0:00:58.4]} 28.
gxh5 {[%clk 0:01:04.9]} 28... gxh5 {[%clk 0:00:59.3]} 29. R1d2 {[%clk
0:01:05.1]} 29... h4 {[%clk 0:00:57]} 30. Rg2 {[%clk 0:01:04.3]} 30... Kh6
{[%clk 0:00:53.1]} 31. Ne2 {[%clk 0:01:01.2]} 31... h3 {[%clk 0:00:46.9]} 32.
Rh2 {[%clk 0:01:01.2]} 32... Kh5 {[%clk 0:00:43.6]} 33. Kd2 {[%clk 0:00:59.9]}
33... Rd8 {[%clk 0:00:35.9]} 34. Ke3 {[%clk 0:00:57.8]} 34... Rxd3+ {[%clk
0:00:35.4]} 35. cxd3 {[%clk 0:00:57.5]} 35... Be6 {[%clk 0:00:23.8]} 36. f4
{[%clk 0:00:48.8]} 36... exf4+ {[%clk 0:00:20.4]} 37. Nxf4+ {[%clk 0:00:48.2]}
37... Kg4 {[%clk 0:00:20.6]} 38. Rh1 {[%clk 0:00:43.8]} 38... Rxf4 {[%clk
0:00:07.4]} 39. Rg1+ {[%clk 0:00:43.4]} 39... Kh4 {[%clk 0:00:07.6]} 40. Kxf4
{[%clk 0:00:43.2]} 40... h2 {[%clk 0:00:06.6]} 41. Rh1 {[%clk 0:00:43.1]} 41...
Nh3+ {[%clk 0:00:06.8]} 42. Kf3 {[%clk 0:00:42.2]} 42... Bg4+ {[%clk 0:00:07]}
43. Kg2 {[%clk 0:00:42.3]} 43... Nf4+ {[%clk 0:00:07.2]} 44. Kxh2 {[%clk
0:00:42]} 44... Be2 {[%clk 0:00:06]} 45. d4 {[%clk 0:00:40.5]} 45... Kg4 {[%clk
0:00:05.5]} 46. Rg1+ {[%clk 0:00:40.1]} 46... Kh5 {[%clk 0:00:04.7]} 47. Rg7
{[%clk 0:00:39.6]} 47... b5 {[%clk 0:00:04.2]} 48. Kg3 {[%clk 0:00:36.1]} 48...
Nd3 {[%clk 0:00:03.7]} 49. Nxd3 {[%clk 0:00:35.1]} 49... Bxd3 {[%clk 0:00:04.6]}
50. Kf4 {[%clk 0:00:35.4]} 50... b4 {[%clk 0:00:02.8]} 51. Rc7 {[%clk
0:00:33.5]} 51... Bb1 {[%clk 0:00:02.6]} 52. Rxc6 {[%clk 0:00:33.1]} 52... Bxa2
{[%clk 0:00:03]} 53. Ra6 {[%clk 0:00:33.3]} 53... Bxb3 {[%clk 0:00:02.5]} 54.
Rxa5+ {[%clk 0:00:33.6]} 54... Kh6 {[%clk 0:00:02.8]} 55. Rb5 {[%clk 0:00:33.9]}
1-0

[Event "Late-Titled-Tuesday-Blitz-August-29-2023"]
[Site "Chess.com"]
[Date "2023.08.29"]
[Round "10"]
[White "The_Straightforward_Rook"]
[Black "jk13"]
[Result "0-1"]
[WhiteElo "2513"]
[BlackElo "2686"]
[TimeControl "180+1"]
[EndTime "15:53:31 PDT"]
[Termination "jk13 won by resignation"]

1. d4 {[%clk 0:02:57.9]} 1... Nf6 {[%clk 0:03:00]} 2. c4 {[%clk 0:02:55]} 2...
e6 {[%clk 0:03:00.6]} 3. Nf3 {[%clk 0:02:55.1]} 3... Bb4+ {[%clk 0:03:01.2]} 4.
Nbd2 {[%clk 0:02:54.8]} 4... O-O {[%clk 0:03:01.1]} 5. a3 {[%clk 0:02:55.2]}
5... Be7 {[%clk 0:03:01.4]} 6. Qc2 {[%clk 0:02:55.5]} 6... d5 {[%clk 0:03:02.3]}
7. e4 {[%clk 0:02:55.6]} 7... c5 {[%clk 0:03:00.3]} 8. e5 {[%clk 0:02:53.1]}
8... Nfd7 {[%clk 0:03:00.5]} 9. Bd3 {[%clk 0:02:53.5]} 9... h6 {[%clk
0:03:00.2]} 10. Nb3 {[%clk 0:02:51.9]} 10... dxc4 {[%clk 0:02:46.4]} 11. Bxc4
{[%clk 0:02:49.1]} 11... cxd4 {[%clk 0:02:45.7]} 12. O-O {[%clk 0:02:43.6]}
12... Nc6 {[%clk 0:02:45.6]} 13. Bf4 {[%clk 0:02:43.4]} 13... Nb6 {[%clk
0:02:35]} 14. Rad1 {[%clk 0:02:34.6]} 14... Nxc4 {[%clk 0:02:26.2]} 15. Qxc4
{[%clk 0:02:35.5]} 15... Qb6 {[%clk 0:02:12.9]} 16. Nbxd4 {[%clk 0:02:27.9]}
16... Nxd4 {[%clk 0:02:12.9]} 17. Rxd4 {[%clk 0:02:27.7]} 17... Rd8 {[%clk
0:01:54.2]} 18. Rxd8+ {[%clk 0:02:05.2]} 18... Qxd8 {[%clk 0:01:49.9]} 19. h4
{[%clk 0:01:51.1]} 19... b6 {[%clk 0:01:32.8]} 20. Rc1 {[%clk 0:01:35.3]} 20...
Bb7 {[%clk 0:01:30.7]} 21. Qc7 {[%clk 0:01:34]} 21... Be4 {[%clk 0:01:00.1]} 22.
Qxd8+ {[%clk 0:01:18.7]} 22... Bxd8 {[%clk 0:01:01]} 23. Nd2 {[%clk 0:01:14.4]}
23... Bd5 {[%clk 0:00:58.8]} 24. g3 {[%clk 0:01:07.4]} 24... b5 {[%clk
0:00:53.7]} 25. Nb1 {[%clk 0:01:02.9]} 25... Bb6 {[%clk 0:00:48.5]} 26. Nc3
{[%clk 0:01:01.6]} 26... Bc4 {[%clk 0:00:38.2]} 27. Ne4 {[%clk 0:00:57.1]} 27...
a6 {[%clk 0:00:26.9]} 28. Nd6 {[%clk 0:00:57.2]} 28... Bd5 {[%clk 0:00:27.3]}
29. Kf1 {[%clk 0:00:54.1]} 29... Kf8 {[%clk 0:00:24.9]} 30. b4 {[%clk
0:00:50.8]} 30... a5 {[%clk 0:00:21.3]} 31. Nxb5 {[%clk 0:00:46.6]} 31... axb4
{[%clk 0:00:21.7]} 32. axb4 {[%clk 0:00:46.5]} 32... Ra2 {[%clk 0:00:20.5]} 33.
Rc8+ {[%clk 0:00:17]} 33... Ke7 {[%clk 0:00:19.7]} 34. Nd6 {[%clk 0:00:17.9]}
34... Rxf2+ {[%clk 0:00:17.6]} 35. Ke1 {[%clk 0:00:18.2]} 35... Bf3 {[%clk
0:00:13.9]} 36. Rb8 {[%clk 0:00:13.3]} 36... Re2+ {[%clk 0:00:12.9]} 37. Kf1
{[%clk 0:00:12.9]} 37... Bd4 {[%clk 0:00:12.1]} 38. Re8+ {[%clk 0:00:09.9]}
38... Kd7 {[%clk 0:00:12.2]} 39. Rf8 {[%clk 0:00:07.5]} 39... f6 {[%clk
0:00:09.5]} 40. b5 {[%clk 0:00:06.6]} 40... Rf2+ {[%clk 0:00:08.8]} 41. Ke1
{[%clk 0:00:06.5]} 41... Rb2 {[%clk 0:00:08.4]} 42. Rf7+ {[%clk 0:00:06.1]}
42... Kd8 {[%clk 0:00:08.1]} 43. Rf8+ {[%clk 0:00:06.5]} 43... Kc7 {[%clk
0:00:07.9]} 44. Rf7+ {[%clk 0:00:06.9]} 44... Kb6 {[%clk 0:00:07.8]} 45. Rb7+
{[%clk 0:00:07.3]} 45... Bxb7 {[%clk 0:00:07.5]} 46. Nxb7 {[%clk 0:00:07.1]}
46... Kxb7 {[%clk 0:00:08.1]} 47. exf6 {[%clk 0:00:07.7]} 47... Bxf6 {[%clk
0:00:07.7]} 48. Bxh6 {[%clk 0:00:08.6]} 48... gxh6 {[%clk 0:00:07.6]} 49. g4
{[%clk 0:00:09.3]} 49... Rxb5 {[%clk 0:00:08]} 50. g5 {[%clk 0:00:10.2]} 50...
hxg5 {[%clk 0:00:08.6]} 51. hxg5 {[%clk 0:00:11.1]} 51... Rxg5 {[%clk
0:00:08.8]} 0-1

[Event "Late-Titled-Tuesday-Blitz-August-29-2023"]
[Site "Chess.com"]
[Date "2023.08.29"]
[Round "10"]
[White "Bilan_Danila"]
[Black "FeketeBarika"]
[Result "0-1"]
[WhiteElo "2470"]
[BlackElo "2374"]
[TimeControl "180+1"]
[EndTime "15:53:32 PDT"]
[Termination "FeketeBarika won on time"]

1. d4 {[%clk 0:03:00.9]} 1... e6 {[%clk 0:02:43.6]} 2. Nf3 {[%clk 0:03:00.8]}
2... Nf6 {[%clk 0:02:43.9]} 3. g3 {[%clk 0:03:00.8]} 3... c5 {[%clk 0:02:43.4]}
4. Bg2 {[%clk 0:03:01.7]} 4... cxd4 {[%clk 0:02:41]} 5. Nxd4 {[%clk 0:03:02.6]}
5... Nc6 {[%clk 0:02:41.3]} 6. O-O {[%clk 0:03:01.8]} 6... Be7 {[%clk
0:02:40.6]} 7. c4 {[%clk 0:03:01.6]} 7... O-O {[%clk 0:02:39.9]} 8. Nc3 {[%clk
0:03:02]} 8... Qb6 {[%clk 0:02:33.5]} 9. Ndb5 {[%clk 0:02:43.3]} 9... Ne5 {[%clk
0:02:26.3]} 10. Be3 {[%clk 0:02:36.8]} 10... Qa5 {[%clk 0:02:13.8]} 11. Qb3
{[%clk 0:01:46.7]} 11... a6 {[%clk 0:01:12.6]} 12. Na3 {[%clk 0:01:06.2]} 12...
Qb4 {[%clk 0:01:01.1]} 13. Bf4 {[%clk 0:00:51.6]} 13... Qxb3 {[%clk 0:00:58.3]}
14. axb3 {[%clk 0:00:51.6]} 14... Nc6 {[%clk 0:00:58.8]} 15. Nab5 {[%clk
0:00:47.9]} 15... Nh5 {[%clk 0:00:47.6]} 16. Nc7 {[%clk 0:00:26.5]} 16... Rb8
{[%clk 0:00:47.8]} 17. Bxc6 {[%clk 0:00:14.7]} 17... Nxf4 {[%clk 0:00:44.4]} 18.
Bf3 {[%clk 0:00:08.8]} 18... Ng6 {[%clk 0:00:43.4]} 19. N7b5 {[%clk 0:00:03.6]}
19... axb5 {[%clk 0:00:42]} 20. Nxb5 {[%clk 0:00:04.5]} 20... Ne5 {[%clk
0:00:40.4]} 21. Bg2 {[%clk 0:00:04.1]} 21... d6 {[%clk 0:00:37.6]} 22. Rfd1
{[%clk 0:00:04.1]} 22... Rd8 {[%clk 0:00:37.2]} 23. Ra7 {[%clk 0:00:04.7]} 23...
Bd7 {[%clk 0:00:31.9]} 24. Nc3 {[%clk 0:00:02.9]} 24... Bc6 {[%clk 0:00:30.3]}
25. f4 {[%clk 0:00:02.2]} 25... Bxg2 {[%clk 0:00:29.3]} 26. Kxg2 {[%clk
0:00:03.1]} 26... Ng4 {[%clk 0:00:29]} 27. Rd3 {[%clk 0:00:02.9]} 27... Bf6
{[%clk 0:00:24.7]} 28. h3 {[%clk 0:00:03.1]} 28... Nh6 {[%clk 0:00:23.9]} 29.
Nb5 {[%clk 0:00:03.3]} 29... d5 {[%clk 0:00:22.8]} 30. cxd5 {[%clk 0:00:03]}
30... exd5 {[%clk 0:00:23.3]} 31. g4 {[%clk 0:00:03.2]} 31... Bxb2 {[%clk
0:00:21.7]} 32. Nc3 {[%clk 0:00:01.6]} 32... Bxc3 {[%clk 0:00:21.4]} 33. Rxc3
{[%clk 0:00:02.5]} 33... d4 {[%clk 0:00:20.8]} 34. Rc7 {[%clk 0:00:02.9]} 34...
d3 {[%clk 0:00:19.5]} 35. exd3 {[%clk 0:00:02.8]} 35... Rxd3 {[%clk 0:00:20.1]}
36. Raxb7 {[%clk 0:00:03.6]} 36... Rdd8 {[%clk 0:00:18.7]} 37. Kg3 {[%clk
0:00:02.8]} 37... g6 {[%clk 0:00:18]} 38. Kh4 {[%clk 0:00:02.1]} 38... Rxb7
{[%clk 0:00:18.3]} 39. Rxb7 {[%clk 0:00:02.2]} 39... Kg7 {[%clk 0:00:18.7]} 40.
Kg3 {[%clk 0:00:01.9]} 40... Ng8 {[%clk 0:00:18.7]} 41. Kf3 {[%clk 0:00:02]}
41... Nf6 {[%clk 0:00:19.1]} 42. Ke3 {[%clk 0:00:02]} 42... Nd5+ {[%clk
0:00:18.5]} 43. Ke4 {[%clk 0:00:02.6]} 43... Nc3+ {[%clk 0:00:18.3]} 44. Ke3
{[%clk 0:00:03.2]} 44... Nd1+ {[%clk 0:00:17.9]} 45. Ke2 {[%clk 0:00:03.1]}
45... Nb2 {[%clk 0:00:18.2]} 46. b4 {[%clk 0:00:03]} 46... Nd3 {[%clk
0:00:17.9]} 47. b5 {[%clk 0:00:03.1]} 47... Nxf4+ {[%clk 0:00:17.9]} 48. Kf3
{[%clk 0:00:03.4]} 48... Nxh3 {[%clk 0:00:18.8]} 49. Rc7 {[%clk 0:00:02.4]}
49... Ng5+ {[%clk 0:00:19.1]} 50. Kf4 {[%clk 0:00:03]} 50... Ne6+ {[%clk
0:00:19.5]} 0-1